fUSD/lending_fUSD_20240516
["ID","MTS","AMOUNT","RATE_DAILY","PERIOD"]
[327201331,1715896248665,-204.7855615,0.00011848,2]
[327201332,1715896248679,-155.0,0.00011848,2]
[327201333,1715896248687,-155.0,0.00011849,2]
[327201334,1715896248696,-1151.96077803,0.00011849,3]
[327201335,1715896248705,-2044.06623565,0.00011849,2]
[327201336,1715896248716,-500.0,0.00011849,2]
[327201337,1715896248725,-500.0,0.00011849,2]
[327201339,1715896248735,-500.0,0.00011849,2]
[327201341,1715896248746,-500.0,0.00011849,2]
[327201343,1715896248756,-500.0,0.00011849,2]
[327201345,1715896248765,-500.0,0.00011849,2]
[327201347,1715896248774,-500.0,0.00011849,2]
[327201349,1715896248783,-194.87184154,0.00011849,2]
[327201351,1715896248792,-4936.72874234,0.00011849,2]
[327201353,1715896248804,-275.41125766,0.00011849,2]
[327201355,1715896248814,-1308.59534255,0.00011849,2]
[327201358,1715896248830,-1232.59825842,0.00011849,2]
[327201360,1715896248841,-2670.94639903,0.00011849,2]
[327201362,1715896248851,-5212.14,0.00011849,2]
[327201364,1715896248860,-5212.14,0.00011849,2]
[327201366,1715896248869,-5212.14,0.00011849,2]
[327201368,1715896248879,-5212.14,0.00011849,2]
[327201370,1715896248888,-5212.14,0.00011849,2]
[327201372,1715896248898,-5212.14,0.00011849,2]
[327201374,1715896248907,-5212.14,0.00011849,2]
[327201376,1715896248916,-631.06,0.00011849,2]
[327201378,1715896248925,-631.06,0.00011849,2]
[327201380,1715896248936,-631.06,0.00011849,2]
[327201382,1715896248945,-631.06,0.00011849,2]
[327201384,1715896248955,-631.06,0.00011849,2]
[327201386,1715896248964,-631.06,0.00011849,2]
[327201388,1715896248974,-631.06,0.00011849,2]
[327201390,1715896248983,-631.06,0.00011849,2]
[327201392,1715896248992,-631.06,0.00011849,2]
[327201394,1715896249002,-772.45,0.00011849,2]
[327201396,1715896249011,-314.49216096,0.00011849,2]
[327201398,1715896249023,-457.95783904,0.00011849,2]
[327201400,1715896249032,-772.45,0.00011849,2]
[327201401,1715896249041,-102.23707479,0.00011849,2]
[327201402,1715896249052,-641.347,0.00011849,2]
[327201403,1715896249064,-28.86592521,0.00011849,2]
[327201404,1715896249073,-347.06636457,0.00011849,2]
[327201405,1715896249084,-425.38363543,0.00011849,2]
[327201406,1715896249093,-137.91770614,0.00011849,2]
[327201407,1715896249105,-634.53229386,0.00011849,2]
[327201408,1715896249114,-772.45,0.00011849,2]
[327201409,1715896249123,-772.45,0.00011849,2]
[327201410,1715896249133,-772.45,0.00011849,2]
[327201411,1715896249142,-150.0,0.00011849,2]
[327201412,1715896249155,-150.0,0.00011849,2]
[327201413,1715896249164,-3588.75517902,0.0001185,2]
[327201414,1715896249176,-983.86902031,0.0001185,2]
[327201415,1715896397903,151.0,0.00020469,120]
[327201430,1715896432244,-207.87,8.87e-05,2]
[327201434,1715896815003,151.0,0.00020469,120]
[327201454,1715897431641,-160.87,0.00010239,2]
[327201455,1715897431651,-136.312565,0.00010239,2]
[327201456,1715897431662,-113.687435,0.00010239,2]
[327201457,1715897431672,-179.87,0.00010239,2]
[327201458,1715897431682,-160.87,0.00010246,2]
[327201459,1715897431691,-24.74677762,0.00010252,2]
[327201460,1715897431741,-136.12322238,0.00010252,2]
[327201461,1715897431751,-160.87,0.00010258,2]
[327201462,1715897431760,-160.87,0.00010265,2]
[327201463,1715897431771,-64.11348293,0.00010271,2]
[327201464,1715897431783,-96.75651707,0.00010271,2]
[327201465,1715897431793,-160.87,0.00010278,2]
[327201466,1715897431804,-160.87,0.00010284,2]
[327201467,1715897431813,-160.87,0.0001029,2]
[327201468,1715897431821,-388.46232861,0.0001029,2]
[327201469,1715897431833,-47.69767139,0.0001029,2]
[327201470,1715897431842,-375.06547807,0.0001029,2]
[327201471,1715897431853,-166.04452193,0.0001029,2]
[327201472,1715897431863,-159.63814162,0.000103,2]
[327201473,1715897431872,-2152.60834718,0.00010337,2]
[327201474,1715897431884,-556.70320369,0.00010337,2]
[327201475,1715897431895,-5563.52123378,0.00010337,2]
[327201476,1715897431907,-3813.17988348,0.00010337,2]
[327201477,1715897431918,-2942.69004989,0.00010337,2]
[327201478,1715897431930,-1233.72140755,0.00010337,2]
[327201479,1715897431941,-1119.80783631,0.00010337,2]
[327201480,1715897431952,-772.96803812,0.00010337,2]
[327201481,1715897431962,-4001.47,0.000104,2]
[327201482,1715897431971,-400.0,0.000104,2]
[327201483,1715897431981,-159.63814161,0.0001056,2]
[327201484,1715897431990,-3646.38,0.0001063,15]
[327201485,1715897432000,-256.89,0.00010635,2]
[327201486,1715897432010,-600.0,0.00010708,2]
[327201487,1715897432019,-159.63814161,0.00010819,2]
[327201488,1715897432028,-1024.5636,0.00010858,2]
[327201489,1715897432039,-446.18745203,0.00010958,2]
[327201490,1715897432050,-500.0,0.00010958,2]
[327201491,1715897432061,-500.0,0.00010958,2]
[327201492,1715897432070,-500.0,0.00010958,2]
[327201493,1715897432081,-500.0,0.00010958,2]
[327201494,1715897432090,-500.0,0.00010958,2]
[327201495,1715897432100,-500.0,0.00010958,2]
[327201496,1715897432109,-500.0,0.00010958,2]
[327201497,1715897432119,-500.0,0.00010958,2]
[327201498,1715897432129,-509.781194,0.00010958,2]
[327201499,1715897432138,-500.0,0.00010958,2]
[327201500,1715897432147,-500.0,0.00010958,2]
[327201501,1715897432157,-500.0,0.00010958,2]
[327201502,1715897432166,-606.89613146,0.00010958,2]
[327201503,1715897432176,-508.373408,0.00010958,2]
[327201504,1715897432185,-304.48683361,0.00010958,2]
[327201505,1715897432195,-500.0,0.00010958,2]
[327201506,1715897432204,-500.0,0.00010958,2]
[327201507,1715897432213,-500.0,0.00010958,2]
[327201508,1715897432224,-500.0,0.00010958,2]
[327201509,1715897432233,-500.0,0.00010958,2]
[327201510,1715897432242,-500.0,0.00010958,2]
[327201511,1715897432251,-340.95646204,0.00010958,2]
[327201512,1715897432263,-170.55215547,0.00010958,2]
[327201513,1715897432272,-399.44784447,0.00010958,2]
[327201514,1715897432284,-100.55215553,0.00010958,2]
[327201515,1715897432293,-251.34784347,0.00010958,2]
[327201516,1715897432306,-248.65215653,0.00010958,2]
[327201517,1715897432315,-500.0,0.00010958,2]
[327201518,1715897432325,-500.0,0.00010958,2]
[327201519,1715897432335,-500.0,0.00010958,2]
[327201520,1715897432344,-500.0,0.00010958,2]
[327201521,1715897432354,-157.25995516,0.00010958,2]
[327201522,1715897432363,-313.13838468,0.00010958,2]
[327201523,1715897432374,-186.86161532,0.00010958,2]
[327201524,1715897432383,-500.0,0.00010958,2]
[327201525,1715897432393,-500.0,0.00010958,2]
[327201526,1715897432402,-500.0,0.00010958,2]
[327201527,1715897432411,-500.0,0.00010958,2]
[327201528,1715897432421,-173.49226013,0.00010958,2]
[327201529,1715897432432,-326.50773987,0.00010958,2]
[327201530,1715897432442,-277.57395249,0.00010958,2]
[327201531,1715897432453,-222.42604751,0.00010958,2]
[327201532,1715897432462,-209.96836772,0.00010958,2]
[327201533,1715897432473,-290.03163228,0.00010958,2]
[327201534,1715897432482,-148.81518684,0.00010958,2]
[327201535,1715897432494,-641.18481316,0.00010958,2]
[327201536,1715897432504,-790.0,0.00010958,2]
[327201537,1715897432515,-790.0,0.00010958,2]
[327201538,1715897432527,-535.62,0.00010958,2]
[327201539,1715897432537,-535.62,0.00010958,2]
[327201540,1715897432546,-535.62,0.00010958,2]
[327201541,1715897432556,-500.0,0.00010958,2]
[327201542,1715897432565,-505.80065184,0.00010958,2]
[327201543,1715897432574,-500.0,0.00010958,2]
[327201544,1715897432584,-500.0,0.00010958,2]
[327201545,1715897432593,-500.0,0.00010958,2]
[327201546,1715897432602,-302.2712118,0.00010958,2]
[327201547,1715897432611,-500.0,0.00010958,2]
[327201548,1715897432621,-500.0,0.00010958,2]
[327201549,1715897432631,-500.0,0.00010958,2]
[327201550,1715897432639,-500.0,0.00010958,2]
[327201551,1715897432649,-500.0,0.00010958,2]
[327201552,1715897432658,-500.0,0.00010958,2]
[327201553,1715897432667,-500.0,0.00010958,2]
[327201554,1715897432676,-519.8673326,0.00010958,2]
[327201555,1715897432686,-500.0,0.00010958,2]
[327201556,1715897432695,-500.0,0.00010958,2]
[327201557,1715897432704,-212.8187052,0.00010958,2]
[327201558,1715897432714,-500.0,0.00010958,2]
[327201559,1715897432723,-500.0,0.00010958,2]
[327201560,1715897432732,-500.0,0.00010958,2]
[327201561,1715897432741,-658.52,0.00010958,2]
[327201562,1715897432750,-520.90848708,0.00010958,2]
[327201563,1715897432759,-658.52,0.00010958,2]
[327201564,1715897432770,-658.52,0.00010958,2]
[327201565,1715897432781,-500.0,0.00010958,2]
[327201566,1715897432791,-500.0,0.00010958,2]
[327201567,1715897432800,-500.0,0.00010958,2]
[327201568,1715897432810,-500.0,0.00010958,2]
[327201569,1715897432819,-500.0,0.00010958,2]
[327201570,1715897432828,-503.38349012,0.00010958,2]
[327201571,1715897432837,-500.0,0.00010958,2]
[327201572,1715897432846,-500.0,0.00010958,2]
[327201573,1715897432855,-537.45255892,0.00010958,2]
[327201574,1715897432864,-500.0,0.00010958,2]
[327201575,1715897432873,-520.51845445,0.00010958,2]
[327201576,1715897432882,-500.0,0.00010958,2]
[327201577,1715897432891,-538.39633812,0.00010958,2]
[327201578,1715897432901,-500.0,0.00010958,2]
[327201579,1715897432909,-523.08254099,0.00010958,2]
[327201580,1715897432919,-500.0,0.00010958,2]
[327201581,1715897432927,-500.0,0.00010958,2]
[327201582,1715897432937,-500.0,0.00010958,2]
[327201583,1715897432946,-1052.53,0.00010958,2]
[327201584,1715897432955,-1052.53,0.00010958,2]
[327201585,1715897432964,-1052.53,0.00010958,2]
[327201586,1715897432973,-364.72356661,0.00010958,2]
[327201587,1715897432982,-518.99740693,0.00010958,2]
[327201588,1715897432991,-333.0567172,0.00010958,2]
[327201589,1715897433000,-556.50058724,0.00010958,2]
[327201590,1715897433009,-500.0,0.00010958,2]
[327201591,1715897433020,-500.0,0.00010958,2]
[327201592,1715897433029,-500.0,0.00010958,2]
[327201593,1715897433043,-500.0,0.00010958,2]
[327201594,1715897433056,-500.0,0.00010958,2]
[327201595,1715897433064,-500.0,0.00010958,2]
[327201596,1715897433073,-631.75,0.00010958,2]
[327201597,1715897433083,-500.0,0.00010958,2]
[327201598,1715897433096,-631.75,0.00010958,2]
[327201599,1715897433105,-500.0,0.00010958,2]
[327201600,1715897433114,-631.75,0.00010958,2]
[327201601,1715897433125,-500.0,0.00010958,2]
[327201602,1715897433133,-500.0,0.00010958,2]
[327201603,1715897433143,-500.0,0.00010958,2]
[327201604,1715897433152,-500.0,0.00010958,2]
[327201605,1715897433161,-500.0,0.00010958,2]
[327201606,1715897433170,-500.0,0.00010958,2]
[327201607,1715897433179,-500.0,0.00010958,2]
[327201608,1715897433188,-500.0,0.00010958,2]
[327201609,1715897433197,-500.0,0.00010958,2]
[327201610,1715897433206,-500.0,0.00010958,2]
[327201611,1715897433216,-500.0,0.00010958,2]
[327201612,1715897433225,-445.21,0.00010958,2]
[327201613,1715897433234,-660.81,0.00010958,2]
[327201614,1715897433243,-660.81,0.00010958,2]
[327201615,1715897433253,-660.81,0.00010958,2]
[327201616,1715897433262,-500.0,0.00010958,2]
[327201617,1715897433272,-500.0,0.00010958,2]
[327201618,1715897433283,-500.0,0.00010958,2]
[327201619,1715897433292,-534.58411432,0.00010958,2]
[327201620,1715897433301,-500.0,0.00010958,2]
[327201621,1715897433312,-500.0,0.00010958,2]
[327201622,1715897433321,-500.0,0.00010958,2]
[327201623,1715897433330,-500.0,0.00010958,2]
[327201624,1715897433339,-500.0,0.00010958,2]
[327201625,1715897433349,-500.0,0.00010958,2]
[327201626,1715897433358,-500.0,0.00010958,2]
[327201627,1715897433367,-500.0,0.00010958,2]
[327201628,1715897433376,-500.0,0.00010958,2]
[327201629,1715897433387,-500.0,0.00010958,2]
[327201630,1715897433396,-500.0,0.00010958,2]
[327201631,1715897433406,-500.0,0.00010958,2]
[327201632,1715897433416,-500.0,0.00010958,2]
[327201633,1715897433426,-500.0,0.00010958,2]
[327201634,1715897433435,-500.0,0.00010958,2]
[327201635,1715897433445,-500.0,0.00010958,2]
[327201636,1715897433454,-1466.1,0.00010958,2]
[327201637,1715897433464,-1466.1,0.00010958,2]
[327201638,1715897433473,-1466.1,0.00010958,2]
[327201639,1715897433483,-511.79620267,0.00010958,2]
[327201640,1715897433494,-500.0,0.00010958,2]
[327201641,1715897433505,-500.0,0.00010958,2]
[327201642,1715897433516,-500.0,0.00010958,2]
[327201643,1715897433527,-2004.79,0.00010958,2]
[327201644,1715897433536,-2004.79,0.00010958,2]
[327201645,1715897433546,-523.60368516,0.00010958,2]
[327201646,1715897433557,-2004.79,0.00010958,2]
[327201647,1715897433566,-500.0,0.00010958,2]
[327201648,1715897433576,-500.0,0.00010958,2]
[327201649,1715897433586,-500.0,0.00010958,2]
[327201650,1715897433594,-500.0,0.00010958,2]
[327201651,1715897433603,-500.0,0.00010958,2]
[327201652,1715897433612,-500.0,0.00010958,2]
[327201653,1715897433621,-500.0,0.00010958,2]
[327201654,1715897433632,-500.0,0.00010958,2]
[327201655,1715897433641,-500.0,0.00010958,2]
[327201656,1715897433651,-500.0,0.00010958,2]
[327201657,1715897433660,-500.0,0.00010958,2]
[327201658,1715897433669,-500.0,0.00010958,2]
[327201659,1715897433678,-500.0,0.00010958,2]
[327201660,1715897433688,-500.0,0.00010958,2]
[327201661,1715897433699,-500.0,0.00010958,2]
[327201662,1715897433708,-726.65,0.00010958,2]
[327201663,1715897433718,-726.65,0.00010958,2]
[327201664,1715897433728,-726.65,0.00010958,2]
[327201665,1715897433738,-1749.5,0.00010958,2]
[327201666,1715897433748,-1749.5,0.00010958,2]
[327201667,1715897433757,-1749.5,0.00010958,2]
[327201668,1715897433768,-500.0,0.00010958,2]
[327201669,1715897433778,-500.0,0.00010958,2]
[327201670,1715897433788,-500.0,0.00010958,2]
[327201671,1715897433798,-500.0,0.00010958,2]
[327201672,1715897433808,-500.0,0.00010958,2]
[327201673,1715897433818,-500.0,0.00010958,2]
[327201674,1715897433827,-2319.43,0.00010958,2]
[327201675,1715897434043,-2319.43,0.00010958,2]
[327201676,1715897434057,-2319.43,0.00010958,2]
[327201677,1715897434066,-2529.61,0.00010958,2]
[327201678,1715897434076,-2529.61,0.00010958,2]
[327201679,1715897434086,-2529.61,0.00010958,2]
[327201680,1715897434095,-714.43,0.00010958,2]
[327201681,1715897434104,-714.43,0.00010958,2]
[327201682,1715897434114,-714.43,0.00010958,2]
[327201683,1715897434128,-500.0,0.00010958,2]
[327201684,1715897434138,-500.0,0.00010958,2]
[327201685,1715897434148,-500.0,0.00010958,2]
[327201686,1715897434159,-1830.49,0.00010958,2]
[327201687,1715897434168,-1830.49,0.00010958,2]
[327201688,1715897434178,-1830.49,0.00010958,2]
[327201689,1715897434187,-2070.64,0.00010958,2]
[327201690,1715897434196,-2070.64,0.00010958,2]
[327201691,1715897434206,-2070.64,0.00010958,2]
[327201692,1715897434215,-1576.75,0.00010958,2]
[327201693,1715897434224,-1576.75,0.00010958,2]
[327201694,1715897434234,-1576.75,0.00010958,2]
[327201695,1715897434243,-1761.01,0.00010958,2]
[327201696,1715897434252,-1761.01,0.00010958,2]
[327201697,1715897434262,-1761.01,0.00010958,2]
[327201698,1715897434272,-2061.49,0.00010958,2]
[327201699,1715897434281,-2061.49,0.00010958,2]
[327201700,1715897434291,-2061.49,0.00010958,2]
[327201701,1715897434301,-500.0,0.00010958,2]
[327201702,1715897434311,-530.12474351,0.00010958,2]
[327201703,1715897434320,-500.0,0.00010958,2]
[327201704,1715897434330,-500.0,0.00010958,2]
[327201705,1715897434339,-500.0,0.00010958,2]
[327201706,1715897434349,-1507.74,0.00010959,2]
[327201707,1715897434360,-150.0,0.00010959,2]
[327201708,1715897434369,-4000.0,0.00010959,3]
[327201709,1715897434379,-241.39,0.00010959,2]
[327201710,1715897434388,-150.99,0.00010959,2]
[327201711,1715897434398,-603.06,0.00010959,2]
[327201712,1715897434407,-248.44,0.00010959,2]
[327201713,1715897434416,-158.76,0.00010959,2]
[327201714,1715897434425,-793.85,0.00010959,2]
[327201715,1715897434435,-150.0,0.0001099,2]
[327201716,1715897434445,-200.0,0.00011,2]
[327201717,1715897434456,-150.0,0.00011068,2]
[327201718,1715897434465,-7500.0,0.00011079,2]
[327201719,1715897434475,-159.63814161,0.00011079,2]
[327201720,1715897434485,-500.0,0.00011099,2]
[327201721,1715897434494,-500.0,0.00011099,2]
[327201722,1715897434503,-1000.0,0.00011124,3]
[327201723,1715897434513,-150.0,0.00011146,2]
[327201724,1715897434523,-1247.87118364,0.00011177,2]
[327201725,1715897434532,-405.80972008,0.00011178,2]
[327201726,1715897434541,-500.0,0.00011178,2]
[327201727,1715897434551,-500.0,0.00011178,2]
[327201728,1715897434561,-158.83659306,0.00011178,2]
[327201729,1715897434571,-500.0,0.00011178,2]
[327201730,1715897434580,-3257.59,0.00011178,2]
[327201731,1715897434590,-255.8561,0.00011178,2]
[327201732,1715897434599,-500.31,0.00011178,2]
[327201733,1715897434609,-419.01,0.00011178,2]
[327201734,1715897434618,-500.0,0.00011178,2]
[327201735,1715897434628,-500.0,0.00011178,2]
[327201736,1715897434637,-500.0,0.00011178,2]
[327201737,1715897434647,-500.0,0.00011178,2]
[327201738,1715897434656,-217.44746409,0.00011179,2]
[327201739,1715897434666,-500.0,0.00011179,2]
[327201740,1715897434675,-500.0,0.00011179,2]
[327201741,1715897434684,-500.0,0.00011179,2]
[327201742,1715897434693,-500.0,0.00011179,2]
[327201743,1715897434703,-500.0,0.00011179,2]
[327201744,1715897434712,-500.54407706,0.00011179,2]
[327201745,1715897434722,-500.0,0.00011179,2]
[327201746,1715897434731,-500.0,0.00011179,2]
[327201747,1715897434740,-500.0,0.00011179,2]
[327201748,1715897434750,-500.0,0.00011179,2]
[327201749,1715897434759,-500.0,0.00011179,2]
[327201750,1715897434768,-500.0,0.00011179,2]
[327201751,1715897434778,-500.0,0.00011179,2]
[327201752,1715897434787,-500.0,0.00011179,2]
[327201753,1715897434796,-500.0,0.00011179,2]
[327201754,1715897434806,-500.0,0.00011179,2]
[327201755,1715897434815,-500.0,0.00011179,2]
[327201756,1715897434824,-500.0,0.00011179,2]
[327201757,1715897434834,-500.0,0.00011179,2]
[327201758,1715897434842,-498.4233425,0.00011179,2]
[327201759,1715897434852,-523.56,0.00011179,2]
[327201760,1715897434861,-500.0,0.00011179,2]
[327201761,1715897434870,-500.0,0.00011179,2]
[327201762,1715897434879,-500.0,0.00011179,2]
[327201763,1715897434888,-500.0,0.00011179,2]
[327201764,1715897434897,-500.0,0.00011179,2]
[327201765,1715897434906,-500.0,0.00011179,2]
[327201766,1715897434916,-500.0,0.00011179,2]
[327201767,1715897434925,-500.0,0.00011179,2]
[327201768,1715897434936,-500.0,0.00011179,2]
[327201769,1715897434945,-500.0,0.00011179,2]
[327201770,1715897434954,-545.2627152,0.00011179,2]
[327201771,1715897434963,-500.0,0.00011179,2]
[327201772,1715897434973,-500.0,0.00011179,2]
[327201773,1715897434982,-500.0,0.00011179,2]
[327201774,1715897434991,-500.0,0.00011179,2]
[327201775,1715897435000,-790.0,0.00011179,2]
[327201776,1715897435010,-790.0,0.00011179,2]
[327201777,1715897435019,-790.0,0.00011179,2]
[327201778,1715897435028,-790.0,0.00011179,2]
[327201779,1715897435042,-535.62,0.00011179,2]
[327201780,1715897435052,-535.62,0.00011179,2]
[327201781,1715897435062,-535.62,0.00011179,2]
[327201782,1715897435071,-535.62,0.00011179,2]
[327201783,1715897435081,-500.0,0.00011179,2]
[327201784,1715897435090,-500.0,0.00011179,2]
[327201785,1715897435099,-500.0,0.00011179,2]
[327201786,1715897435109,-500.0,0.00011179,2]
[327201787,1715897435119,-500.0,0.00011179,2]
[327201788,1715897435129,-500.0,0.00011179,2]
[327201789,1715897435138,-500.0,0.00011179,2]
[327201790,1715897435147,-500.0,0.00011179,2]
[327201791,1715897435156,-491.77484603,0.00011179,2]
[327201792,1715897435165,-500.0,0.00011179,2]
[327201793,1715897435174,-500.0,0.00011179,2]
[327201794,1715897435185,-500.0,0.00011179,2]
[327201795,1715897435194,-500.0,0.00011179,2]
[327201796,1715897435204,-658.52,0.00011179,2]
[327201797,1715897435214,-658.52,0.00011179,2]
[327201798,1715897435223,-658.52,0.00011179,2]
[327201799,1715897435232,-658.52,0.00011179,2]
[327201800,1715897435242,-500.0,0.00011179,2]
[327201801,1715897435251,-500.0,0.00011179,2]
[327201802,1715897435260,-500.0,0.00011179,2]
[327201803,1715897435270,-500.0,0.00011179,2]
[327201804,1715897435279,-500.0,0.00011179,2]
[327201805,1715897435288,-500.0,0.00011179,2]
[327201806,1715897435298,-500.0,0.00011179,2]
[327201807,1715897435309,-500.0,0.00011179,2]
[327201808,1715897435319,-1052.53,0.00011179,2]
[327201809,1715897435328,-1052.53,0.00011179,2]
[327201810,1715897435337,-1052.53,0.00011179,2]
[327201811,1715897435346,-1052.53,0.00011179,2]
[327201812,1715897435359,-500.0,0.00011179,2]
[327201813,1715897435369,-500.0,0.00011179,2]
[327201814,1715897435378,-500.0,0.00011179,2]
[327201815,1715897435388,-500.0,0.00011179,2]
[327201816,1715897435398,-500.0,0.00011179,2]
[327201817,1715897435407,-500.0,0.00011179,2]
[327201818,1715897435417,-486.27711405,0.00011179,2]
[327201819,1715897435427,-631.75,0.00011179,2]
[327201820,1715897435436,-500.0,0.00011179,2]
[327201821,1715897435446,-493.5,0.00011179,2]
[327201822,1715897435456,-631.75,0.00011179,2]
[327201823,1715897435466,-631.75,0.00011179,2]
[327201824,1715897435476,-500.0,0.00011179,2]
[327201825,1715897435485,-631.75,0.00011179,2]
[327201826,1715897435494,-500.0,0.00011179,2]
[327201827,1715897435503,-500.0,0.00011179,2]
[327201828,1715897435513,-500.0,0.00011179,2]
[327201829,1715897435523,-500.0,0.00011179,2]
[327201830,1715897435532,-500.0,0.00011179,2]
[327201831,1715897435542,-500.0,0.00011179,2]
[327201832,1715897435552,-500.0,0.00011179,2]
[327201833,1715897435562,-500.0,0.00011179,2]
[327201834,1715897435572,-660.81,0.00011179,2]
[327201835,1715897435581,-660.81,0.00011179,2]
[327201836,1715897435591,-660.81,0.00011179,2]
[327201837,1715897435600,-660.81,0.00011179,2]
[327201838,1715897435610,-652.01,0.00011179,2]
[327201839,1715897435620,-500.0,0.00011179,2]
[327201840,1715897435629,-500.0,0.00011179,2]
[327201841,1715897435637,-500.0,0.00011179,2]
[327201842,1715897435646,-500.0,0.00011179,2]
[327201843,1715897435656,-967.77,0.00011179,2]
[327201844,1715897435665,-500.0,0.00011179,2]
[327201845,1715897435675,-500.0,0.00011179,2]
[327201846,1715897435683,-500.0,0.00011179,2]
[327201847,1715897435693,-500.0,0.00011179,2]
[327201848,1715897435703,-500.0,0.00011179,2]
[327201849,1715897435712,-500.0,0.00011179,2]
[327201850,1715897435721,-500.0,0.00011179,2]
[327201851,1715897435730,-500.0,0.00011179,2]
[327201852,1715897435739,-500.0,0.00011179,2]
[327201853,1715897435749,-500.0,0.00011179,2]
[327201854,1715897435758,-500.0,0.00011179,2]
[327201855,1715897435767,-500.0,0.00011179,2]
[327201856,1715897435777,-1310.45,0.00011179,2]
[327201857,1715897435786,-500.0,0.00011179,2]
[327201858,1715897435796,-500.0,0.00011179,2]
[327201859,1715897435806,-500.0,0.00011179,2]
[327201860,1715897435816,-500.0,0.00011179,2]
[327201861,1715897435825,-500.0,0.00011179,2]
[327201862,1715897435834,-500.0,0.00011179,2]
[327201863,1715897435844,-500.0,0.00011179,2]
[327201864,1715897435853,-500.0,0.00011179,2]
[327201865,1715897435862,-656.42,0.00011179,2]
[327201866,1715897435871,-1466.1,0.00011179,2]
[327201867,1715897435880,-1466.1,0.00011179,2]
[327201868,1715897435890,-1466.1,0.00011179,2]
[327201869,1715897435899,-1466.1,0.00011179,2]
[327201870,1715897435908,-1482.86,0.00011179,2]
[327201871,1715897435917,-500.0,0.00011179,2]
[327201872,1715897435927,-500.0,0.00011179,2]
[327201873,1715897435936,-500.0,0.00011179,2]
[327201874,1715897435945,-500.0,0.00011179,2]
[327201875,1715897435954,-2004.79,0.00011179,2]
[327201876,1715897435964,-2004.79,0.00011179,2]
[327201877,1715897435973,-2004.79,0.00011179,2]
[327201878,1715897435983,-2004.79,0.00011179,2]
[327201879,1715897435992,-500.0,0.00011179,2]
[327201880,1715897436002,-500.0,0.00011179,2]
[327201881,1715897436012,-500.0,0.00011179,2]
[327201882,1715897436021,-500.0,0.00011179,2]
[327201883,1715897436030,-542.84521978,0.00011179,2]
[327201884,1715897436045,-500.0,0.00011179,2]
[327201885,1715897436054,-500.0,0.00011179,2]
[327201886,1715897436064,-500.0,0.00011179,2]
[327201887,1715897436073,-500.0,0.00011179,2]
[327201888,1715897436083,-500.0,0.00011179,2]
[327201889,1715897436093,-500.0,0.00011179,2]
[327201890,1715897436103,-500.0,0.00011179,2]
[327201891,1715897436113,-500.0,0.00011179,2]
[327201892,1715897436123,-500.0,0.00011179,2]
[327201893,1715897436132,-500.0,0.00011179,2]
[327201894,1715897436141,-500.0,0.00011179,2]
[327201895,1715897436150,-500.0,0.00011179,2]
[327201896,1715897436160,-500.0,0.00011179,2]
[327201897,1715897436169,-500.0,0.00011179,2]
[327201898,1715897436178,-500.0,0.00011179,2]